Cogmind - Beta 15 @@@ ROGUE MODE // 2025.08.02 @ 19:24:27 Player: Btuck Result: Destroyed by Armor Guard with Advanced Plasma Rifle Performance ------------- Evolutions (6) 3000 Regions Visited (7) 1400 Robots Destroyed (46) 230 Value Destroyed (1337) 1337 Prototype IDs (10) 200 Alien Tech Used (0) 0 Bonus (1720) 1720 TOTAL SCORE: 7887 Bonus ------- Follower Combat Kills 934 Registered with UFD 300 Met Optimus in HQ 500 Friendly Fire -14 Cogmind --------- Core Integrity 0/1150 Matter 283/300 Energy 99/100 System Corruption 4% Temperature Cool (12) Movement Core (50) Location -4/Armory Parts ------- > --- POWER (2) -------- (None) > --- PROPULSION (7) --- (None) > --- UTILITY (8) ------ Propulsion Shielding > --- WEAPON (2) ------- (None) > --- INVENTORY (5) ---- Light Angular Momentum Engine Long-range Sensor Array Melee Analysis Suite Advanced Actuator Array Fusion Bomb Launcher Peak State ------------ > --- POWER ------------ Improved Ion Engine Neutrino Core > --- PROPULSION ------- VTOL Module VTOL Module VTOL Module VTOL Module Makeshift Flight Unit Field Propulsion Drive Field Propulsion Drive > --- UTILITY ---------- Improved Heat Sink Advanced Sensor Array Improved Reaction Control System Improved Medium Armor Plating Hacking Suite A0-MCA's Component Scanner > --- WEAPON ----------- Greatsword > --- INVENTORY -------- Light Angular Momentum Engine Field Propulsion Array Long-range Sensor Array Ripper [Rating: 72] Favorites ----------- Power Improved Ion Engine Engine Improved Ion Engine Power Core Neutrino Core Propulsion Improved Treads Treads Improved Treads Leg Aluminum Leg Flight Unit VTOL Module Utility High-capacity Storage Unit Device V3-11A's Pendant Storage High-capacity Storage Unit Processor A0-MCA's Component Scanner Hackware Hacking Suite Protection Improved Medium Armor Plating Weapon Heavy Assault Rifle Energy Gun Small Laser Ballistic Gun Heavy Assault Rifle Ballistic Cannon Enhanced Gauss Cannon Slashing Weapon Greatsword Build | -11 -10 -10 -10 -7 -5 -4 -4 ------- Run | Yrd Mat Min Sub Scr Fac Fac Arm Slots Evolved 12 | . . . . . 10 2 . Power 1 | . . . . . 1 . . Propulsion 5 | . . . . . 4 1 . Utility 6 | . . . . . 5 1 . Weapon . | . . . . . . . . Parts Attached 54 | 8 9 . 5 1 22 3 6 Power 5 | 2 1 . . . 2 . . Engine 4 | 2 1 . . . 1 . . Core 1 | . . . . . 1 . . Reactor . | . . . . . . . . Propulsion 21 | 2 4 . 1 1 10 1 2 Treads 10 | . 4 . 1 1 4 . . Leg 2 | 2 . . . . . . . Wheel . | . . . . . . . . Hover . | . . . . . . . . Flight 9 | . . . . . 6 1 2 Utility 16 | 2 1 . 2 . 6 2 3 Device 9 | 1 . . 2 . 4 1 1 Storage 2 | 1 1 . . . . . . Processor 2 | . . . . . 1 . 1 Hackware 1 | . . . . . . 1 . Protection 2 | . . . . . 1 . 1 Artifact . | . . . . . . . . Weapon 12 | 2 3 . 2 . 4 . 1 Energy Gun 1 | 1 . . . . . . . Energy Cannon . | . . . . . . . . Ballistic Gun 5 | 1 2 . 2 . . . . Ballistic Cannon 3 | . 1 . . . 2 . . Launcher . | . . . . . . . . Special Weapon . | . . . . . . . . Impact Weapon . | . . . . . . . . Slashing Weapon 3 | . . . . . 2 . 1 Piercing Weapon . | . . . . . . . . Special Melee Weapon . | . . . . . . . . Unidentified Prototypes 1 | . . . 1 . . . . Parts Lost 31 | . . . 4 . 11 . 16 Power 2 | . . . . . 1 . 1 Propulsion 15 | . . . 1 . 5 . 9 Utility 8 | . . . 1 . 3 . 4 Weapon 6 | . . . 2 . 2 . 2 Highest Loss Streak 13 | . . . 2 . 7 . 13 To Critical Strikes 1 | . . . . . 1 . . Average Backups 14 | 2 13 18 18 19 11 4 3 Power 2 | . 2 3 3 2 . 1 1 Propulsion 8 | 1 8 11 10 11 5 . . Utility 2 | . . 1 2 3 2 1 1 Weapon 2 | . 2 3 2 2 2 1 . Tool/Special . | . . . . . . . . Unused Backups 6 | . 1 . . . 1 . 4 Power 1 | . . . . . . . 1 Propulsion 2 | . 1 . . . 1 . . Utility 2 | . . . . . . . 2 Weapon 1 | . . . . . . . 1 Tool/Special . | . . . . . . . . Average Slot Usage (%) 90 | . 100 100 98 100 67 68 31 Engine 11 | . 14 14 14 14 4 1 1 Treads 24 | . 24 28 28 28 25 . . Flight 2 | . . . . . 5 32 11 Device 12 | . 14 14 12 14 11 10 3 Storage 11 | . 14 14 14 14 4 . . Ballistic Gun 21 | . 23 28 27 28 4 . . Ballistic Cannon 1 | . 2 . . . 3 . . Peak Build Rating 72 | 7 14 15 18 20 57 71 72 Average Rating 19 | 4 11 14 16 19 38 61 25 On Entrance 24 | . 7 14 15 18 20 57 67 Naked Turns 20 | . . . . . . . 20 Heaviest Build 65 | 13 54 54 55 54 65 36 37 Greatest Support 126 | 20 46 46 46 46 126 38 38 Greatest Overweight (x) 3 | 3 1 1 1 1 . . 1 Average Overweight (x) . | . . 1 1 1 . . . Largest Inventory Capacity 20 | 8 20 20 20 20 20 5 5 Average Capacity 17 | 7 16 20 20 20 17 5 5 Most Carried 20 | 3 19 19 19 20 19 5 5 Average Carried 14 | 2 13 18 18 19 11 4 4 Final Capacity 20 | 8 20 20 20 20 5 5 5 Final Carried 20 | 3 17 19 19 20 5 4 5 Class Distribution -------------------- 90% | Mutant 5% | Sprinter Dominant Class ---------------- Mutant | -10/Materials Mutant | -10/Mines Mutant | -10/Subcaves Mutant | -7/Scraptown Mutant | -5/Factory Sprinter | -4/Factory Commander-Mutant | -4/Armory Resources | -11 -10 -10 -10 -7 -5 -4 -4 ----------- Run | Yrd Mat Min Sub Scr Fac Fac Arm Matter Collected 1564 | 293 318 30 150 . 644 86 43 Remotely . | . . . . . . . . Salvage Created 1558 | 82 625 100 105 . 646 . . Parts 94 | 9 45 3 8 . 29 . . Haulers Intercepted 2 | . 2 . . . . . . Recyclers Shooed 1 | . . . . . 1 . . Parts Field Recycled . | . . . . . . . . Retrieved Matter . | . . . . . . . . Parts Self-Destructed 11 | . . . 11 . . . . Prevented . | . . . . . . . . Kills | -11 -10 -10 -10 -7 -5 -4 -4 ------- Run | Yrd Mat Min Sub Scr Fac Fac Arm Combat Hostiles Destroyed 34 | . 15 2 2 . 15 . . Melee 1 | . . . . . 1 . . Guns 17 | . 12 2 2 . 1 . . Cannons 16 | . 3 . . . 13 . . Classes Destroyed 11 | 2 5 . 1 . 3 . . Worker 1 | . . . . . 1 . . Tunneler 3 | 1 1 . . . 1 . . Hauler 2 | . 2 . . . . . . Recycler 2 | 1 . . . . 1 . . Operator 1 | . 1 . . . . . . Watcher 3 | . 3 . . . . . . Swarmer 12 | . 6 . . . 6 . . Grunt 16 | . 9 2 . . 5 . . Sentry 1 | . . . . . 1 . . Hunter 3 | . . . . . 3 . . Subdweller 2 | . . . 2 . . . . Best Kill Streak 6 | 2 3 2 1 . 6 . . Combat Bots Only 5 | . 3 2 1 . 5 . . Max Kills in Single Turn 2 | 1 2 1 1 . 1 . . Gunslinging . | . . . . . . . . Exploded . | . . . . . . . . Melee 1 | . . . . . 1 . . Uniques/NPCs Destroyed . | . . . . . . . . Combat | -11 -10 -10 -10 -7 -5 -4 -4 -------- Run | Yrd Mat Min Sub Scr Fac Fac Arm Hostile Shots Fired 481 | . 62 6 31 . 201 6 175 Missed 171 | . 21 1 9 . 60 1 79 Hits 310 | . 41 5 22 . 141 5 96 Melee 18 | . . . . . . . 18 Projectile 292 | . 41 5 22 . 141 5 78 AOE 2 | . . . . . . . 2 Critical Strikes 20 | . . . 3 . 6 . 11 Damage Taken 5172 | . 383 54 439 . 2177 138 1981 Core 1546 | . 58 21 84 . 215 27 1141 Absorbed by Shields 125 | . . . . . . . 125 Redirected to Shielding 12 | . . . . . . . 12 Regen/Repaired (Parts) 20 | . . . . . 20 . . Core Remaining (%) 70 | 100 . . . 34 78 . . Volleys Fired 141 | 13 53 5 20 . 50 . . Largest 2 | 2 2 2 2 . 2 . . Hottest 70 | 60 60 46 46 . 70 . . Shots Fired 279 | 26 106 10 40 . 97 . . Gun 220 | 26 97 10 40 . 47 . . Cannon 59 | . 9 . . . 50 . . Launcher . | . . . . . . . . Special . | . . . . . . . . Kinetic 252 | 13 92 10 40 . 97 . . Thermal 27 | 13 14 . . . . . . Explosive . | . . . . . . . . Electromagnetic . | . . . . . . . . Robot Hit Streak 12 | 6 9 5 10 . 12 . . Robot Miss Streak 5 | 1 5 2 1 . 4 . . Penetration Max 1 | . . . . . 1 . . Secondary Targets 2 | . 1 . 1 . . . . Max Gunslinging Chain 1 | . 1 . 1 . . . . Shots Hit Robots 190 | 19 61 7 33 . 70 . . Core Hits 80 | 6 31 4 6 . 32 . 1 Critical Kills 3 | . 3 . . . . . . Critical Parts Destroyed 1 | . 1 . . . . . . Critical Strikes 11 | . 4 . . . 7 . . Destroy 4 | . 4 . . . . . . Blast 4 | . . . . . 4 . . Sever 3 | . . . . . 3 . . Melee Attacks 30 | . . . . . 14 7 9 Impact . | . . . . . . . . Slashing 30 | . . . . . 14 7 9 Piercing . | . . . . . . . . Sneak Attacks 2 | . . . . . 2 . . Combat Hostiles 1 | . . . . . 1 . . Follow-up Attacks . | . . . . . . . . Damage Inflicted 3647 | 172 950 104 514 . 1896 . 11 Guns 2006 | 172 806 104 514 . 410 . . Cannons 1179 | . 121 . . . 1058 . . Explosions . | . . . . . . . . Melee 420 | . . . . . 420 . . Ramming 42 | . 23 . . . 8 . 11 Kinetic 3001 | 94 821 104 514 . 1468 . . Thermal 184 | 78 106 . . . . . . Explosive . | . . . . . . . . Electromagnetic . | . . . . . . . . Impact . | . . . . . . . . Slashing 420 | . . . . . 420 . . Piercing . | . . . . . . . . Highest Corruption 4 | . . . . . . . 4 Average Corruption 3 | . . . . . . . 3 Corruption Purged . | . . . . . . . . Corruption Blocked . | . . . . . . . . Effects 6 | . . . . . . . 6 Message Errors 1 | . . . . . . . 1 Matter Fused 4 | . . . . . . . 4 Energy Discharges 1 | . . . . . . . 1 Overload Shots . | . . . . . . . . Overflow Damage 91 | . . . . . 91 . . Projectiles . | . . . . . . . . Explosions . | . . . . . . . . Melee 91 | . . . . . 91 . . Knockbacks 13 | . 1 . . . 12 . . Impact . | . . . . . . . . Kinetic 12 | . 1 . . . 11 . . Secondary 1 | . . . . . 1 . . Self-Inflicted Damage 5 | . . . . . . . 5 Shots . | . . . . . . . . Rammed 9 | . 4 . . . 2 . 3 Targets Rammed 11 | . 6 . . . 2 . 3 Kicked 2 | . 2 . . . . . . Crushed . | . . . . . . . . Highest Temperature 319 | 40 40 2 . . 20 270 319 Average Temperature 44 | 21 16 2 . . 8 81 113 Received Heat Transfer 907 | . 132 30 87 . 360 27 271 Siege Activations . | . . . . . . . . Martial Activations . | . . . . . . . . Shielding Activations . | . . . . . . . . Robots Disrupted . | . . . . . . . . Combat Hostiles . | . . . . . . . . Robots Corrupted . | . . . . . . . . Combat Hostiles . | . . . . . . . . Parts Fried . | . . . . . . . . Impact Corruptions . | . . . . . . . . Robots Melted . | . . . . . . . . Combat Hostiles . | . . . . . . . . Parts Melted . | . . . . . . . . Heat Transferred 425 | 175 250 . . . . . . Parts Sabotaged . | . . . . . . . . Parts Stolen . | . . . . . . . . Parts Stripped . | . . . . . . . . Power Chain Reactions . | . . . . . . . . Alert | -11 -10 -10 -10 -7 -5 -4 -4 ------- Run | Yrd Mat Min Sub Scr Fac Fac Arm Maximum Alert Level 3 | . . . . . . . 3 Low Security (%) 90 | 100 100 100 . . 100 100 27 Level 1 1 | . . . . . . . 11 Level 2 1 | . . . . . . . 9 Level 3 6 | . . . . . . . 52 Level 4 . | . . . . . . . . Level 5 . | . . . . . . . . High Security . | . . . . . . . . Max Security . | . . . . . . . . Peak Influence 973 | 5 87 81 . . 115 33 973 Initial 33 | . . 16 . . . 33 14 Average 98 | . 30 30 . . 56 17 542 Influence Increases 2456 | 10 448 65 55 . 475 44 1359 Destroy 0b10 Robot/C 1140 | . 300 40 40 . 340 . 420 Destroy 0b10 Robot/NC 65 | 10 35 . . . 15 . 5 Destroy Leader 160 | . 70 10 10 . 40 . 30 Allied During Kill 379 | . . . 5 . 22 . 352 Successful Hack 32 | . 25 . . . . . 7 Disable Machine 45 | . . 15 . . 15 . 15 Destroy Structure 65 | . 3 . . . 28 14 20 Partial Spotted 60 | . . . . . 15 30 15 Lose Combat Pursuer 510 | . 15 . . . . . 495 Influence Decreases 1674 | 10 404 109 55 . 406 83 607 Entered New Map 80 | . . 28 . . . 36 16 Time Decay 1011 | 10 404 81 55 . 234 47 180 Lost Part 261 | . . . . . 110 . 151 Lost Ally 322 | . . . . . 62 . 260 Squads Dispatched 11 | . 4 . . . 1 . 6 Investigation 4 | . 3 . . . . . 1 Extermination 1 | . . . . . . . 1 Reinforcement 4 | . 1 . . . 1 . 2 Assault 2 | . . . . . . . 2 Garrison . | . . . . . . . . Intercept . | . . . . . . . . Searches Triggered . | . . . . . . . . Construction Impeded . | . . . . . . . . Haulers Reinforced . | . . . . . . . . Active Scanning Responses . | . . . . . . . . Cargo Convoy Interrupts . | . . . . . . . . Stealth | -11 -10 -10 -10 -7 -5 -4 -4 --------- Run | Yrd Mat Min Sub Scr Fac Fac Arm Distress Signals 3 | . 1 1 . . . . 1 Communications Jammed . | . . . . . . . . Distress Signals . | . . . . . . . . Times Spotted 123 | . 30 2 9 . 20 5 57 Peak Tracking Total 25 | . 5 2 3 . 6 8 25 Tactical Retreats 8 | . 1 . . . . . 7 Traps | -11 -10 -10 -10 -7 -5 -4 -4 ------- Run | Yrd Mat Min Sub Scr Fac Fac Arm Traps Triggered 6 | . 2 . . . . . 4 Indirectly . | . . . . . . . . Trap Hack Attempts . | . . . . . . . . Triggered . | . . . . . . . . Disarmed . | . . . . . . . . Reprogrammed . | . . . . . . . . Reused . | . . . . . . . . Traps Extracted . | . . . . . . . . Installed . | . . . . . . . . Triggered . | . . . . . . . . Machines | -11 -10 -10 -10 -7 -5 -4 -4 ---------- Run | Yrd Mat Min Sub Scr Fac Fac Arm Machines Disabled 3 | . . 1 . . 1 . 1 Max in Single Turn 1 | . . 1 . . 1 . 1 Machines Repaired . | . . . . . . . . Machines Dismantled . | . . . . . . . . Machines Sabotaged . | . . . . . . . . Overloaded Fab Kills . | . . . . . . . . Hacking | -11 -10 -10 -10 -7 -5 -4 -4 --------- Run | Yrd Mat Min Sub Scr Fac Fac Arm Machines Accessed 10 | . 5 . . 2 1 . 2 Terminals 8 | . 5 . . . 1 . 2 Fabricators . | . . . . . . . . Repair Stations . | . . . . . . . . Recycling Units . | . . . . . . . . Scanalyzers . | . . . . . . . . Garrison Access . | . . . . . . . . Total Hacks 34 | . 14 . . 16 2 . 2 Successful 26 | . 9 . . 16 . . 1 Failed 8 | . 5 . . . 2 . 1 Catastrophic . | . . . . . . . . Database Lockouts . | . . . . . . . . Manual 15 | . 14 . . . . . 1 Terminals 18 | . 14 . . . 2 . 2 Fabricators . | . . . . . . . . Repair Stations . | . . . . . . . . Recycling Units . | . . . . . . . . Scanalyzers . | . . . . . . . . Garrison Access . | . . . . . . . . Terminal Hacks 22 | . 5 . . 16 . . 1 Record 15 | . . . . 15 . . . Robot Analysis 3 | . 3 . . . . . . Open Door 1 | . . . . . . . 1 Locate Traps 1 | . 1 . . . . . . Zone Layout 1 | . 1 . . . . . . Proto ID Catalog 1 | . . . . 1 . . . Fabricator Hacks . | . . . . . . . . Repair Station Hacks . | . . . . . . . . Recycling Unit Hacks . | . . . . . . . . Scanalyzer . | . . . . . . . . Garrison Access Hacks . | . . . . . . . . Unauthorized Hacks 4 | . 4 . . . . . . Terminals 4 | . 4 . . . . . . Botnet 4 | . 4 . . . . . . Fabricators . | . . . . . . . . Repair Stations . | . . . . . . . . Recycling Units . | . . . . . . . . Scanalyzers . | . . . . . . . . Garrison Access . | . . . . . . . . Data Cores Recovered 2 | . 1 . . . . . 1 Used . | . . . . . . . . Hacking Detections 4 | . 2 . . . 1 . 1 Full Trace Events 1 | . 1 . . . . . . Feedback Events . | . . . . . . . . Feedback Blocked . | . . . . . . . . Robot Schematics Acquired . | . . . . . . . . Robots Built . | . . . . . . . . Authchips . | . . . . . . . . Time . | . . . . . . . . Total Robot Build Rating . | . . . . . . . . Part Schematics Acquired . | . . . . . . . . Parts Built . | . . . . . . . . Authchips . | . . . . . . . . Time . | . . . . . . . . Total Part Build Rating . | . . . . . . . . Parts Repaired . | . . . . . . . . Time . | . . . . . . . . Parts Recycled . | . . . . . . . . Recycled Matter . | . . . . . . . . Retrieved Matter . | . . . . . . . . Retrieved Components . | . . . . . . . . Parts Scanalyzed . | . . . . . . . . Part Schematics Acquired . | . . . . . . . . Parts Damaged . | . . . . . . . . Bothacking | -11 -10 -10 -10 -7 -5 -4 -4 ------------ Run | Yrd Mat Min Sub Scr Fac Fac Arm Used RIF Installer . | . . . . . . . . Robots Hacked . | . . . . . . . . Non-combat . | . . . . . . . . Combat . | . . . . . . . . Robot Hacks Applied . | . . . . . . . . Relay Couplers Released . | . . . . . . . . Fabnet Peak Effective % . | . . . . . . . . Robots Rewired 4 | . . . . . . . 4 Allies Hacked . | . . . . . . . . Hacks Repelled . | . . . . . . . . Allies | -11 -10 -10 -10 -7 -5 -4 -4 -------- Run | Yrd Mat Min Sub Scr Fac Fac Arm Total Allies 20 | . . . 6 . . . 14 Largest Group 10 | . . . 6 6 5 . 10 Highest-Rated Group 481 | . . . 114 114 95 . 481 Highest-Rated Ally 58 | . . . 19 19 19 . 58 Total Orders . | . . . . . . . . Ally Attacks 141 | . . . 21 . 23 . 97 Total Damage 3475 | . . . 262 . 258 . 2955 Kills 27 | . . . 3 . 2 . 22 Allies Corrupted 1 | . . . . . . . 1 Allies Melted . | . . . . . . . . Intel | -11 -10 -10 -10 -7 -5 -4 -4 ------- Run | Yrd Mat Min Sub Scr Fac Fac Arm Active Infowar (turns) 2422 | 36 1599 225 148 . 222 114 78 Optics 148 | . . . 126 . 22 . . Sensors 392 | . . . . . 200 114 78 Seismic 1882 | 36 1599 225 22 . . . . Robot Analysis Total 3 | . 3 . . . . . . Derelict Logs Recovered . | . . . . . . . . Drone Launches . | . . . . . . . . Drone Recoveries . | . . . . . . . . Exploration | -11 -10 -10 -10 -7 -5 -4 -4 ------------- Run | Yrd Mat Min Sub Scr Fac Fac Arm Turns Passed 5639 | 112 1599 225 1080 1483 641 114 385 Spaces Moved 3142 | 64 647 86 412 605 414 334 580 Core 221 | 28 . . . . . . 193 Treads 1844 | . 539 86 412 605 202 . . Legs 144 | 36 108 . . . . . . Wheels . | . . . . . . . . Hover . | . . . . . . . . Flight 933 | . . . . . 212 334 387 Fastest Speed 22 | 50 120 240 240 240 25 22 22 Average Speed 151 | 97 203 240 240 244 91 23 44 Slowest Speed 245 | 200 240 240 240 245 162 25 100 Overloaded Moves . | . . . . . . . . Propulsion Burnouts . | . . . . . . . . Robots Hopped 5 | . . . . . . . 5 Potential Cave-ins . | . . . . . . . . Cave-ins Triggered . | . . . . . . . . Exploration Rate (%) 29 | 5 69 22 29 44 10 9 49 Regions Visited 7 Branch Regions 4 Pre-discovered Areas . | . . . . . . . . Known Exits Taken . | . . . . . . . . Unknown Exits Taken 7 | 1 1 1 1 1 1 1 . Scrap Searched 7 | . . 1 4 2 . . . Spaces Dug 17 | . . . . . 3 7 7 Terrain Destroyed 28 | . . . . . 14 7 7 Melee 17 | . . . . . 3 7 7 Projectile 11 | . . . . . 11 . . AOE . | . . . . . . . . Terrain Rammed . | . . . . . . . . Walls Destroyed . | . . . . . . . . Machines Disabled . | . . . . . . . . Actions | -11 -10 -10 -10 -7 -5 -4 -4 --------- Run | Yrd Mat Min Sub Scr Fac Fac Arm Total 3676 | 86 826 96 464 612 559 352 681 Wait 176 | . 82 3 25 . 32 7 27 Move 3127 | 63 646 85 411 604 413 333 572 Hop 3 | . . . . . . . 3 Pick Up 35 | 2 17 2 2 3 5 . 4 Fast Attach 24 | 7 4 . 2 . 5 2 4 Attach 32 | . 2 . 3 . 21 2 4 Detach 17 | . 5 . 1 . 9 1 1 Swap 6 | 1 3 . . 1 1 . . Drop 20 | . 8 . . 4 7 . 1 Fire 141 | 13 53 5 20 . 50 . . Melee 30 | . . . . . 14 7 9 Ram 3 | . . . . . . . 3 Kick 2 | . 2 . . . . . . Crush 6 | . 4 . . . 2 . . Escape Stasis 26 | . . . . . . . 26 Rewire 28 | . . 1 . . . . 27 Trap . | . . . . . . . . Miscellaneous . | . . . . . . . . Route ------- -11/Scrapyard -10/Materials (discovered 3 exits: [*Mat x2] / [*Min]) -10/Mines -10/Subcaves (discovered 2 exits: [*Mat] / *Scr) -7/Scraptown -5/Factory -4/Factory -4/Armory History --------- Turn | Location | Event 23 | -11/Scrapyard | Discovered new exit (range 16) 113 | -11/Scrapyard | Entered Materials 314 | -10/Materials | Build established: Mutant 331 | -10/Materials | Discovered new exit (range 10) 1206 | -10/Materials | Discovered new exit (range 14) 1587 | -10/Materials | Discovered new exit (range 14) 1712 | -10/Materials | Entered Mines 1764 | -10/Mines | Assembled infested the area 1862 | -10/Mines | Found a damaged Exp. Sensor Array with a note attached 1867 | -10/Mines | Found Prototype Device 1923 | -10/Mines | Discovered new exit (range 8) 1937 | -10/Mines | Entered Subcaves 1938 | -10/Subcaves | Approached by a straggling Scientist 1998 | -10/Subcaves | Core integrity fell below 50% 2097 | -10/Subcaves | Discovered new exit (range 13) 2133 | -10/Subcaves | Visited triangular shrine 2150 | -10/Subcaves | Found Prototype Device 2150 | -10/Subcaves | Identified V3-11A's Pendant 2155 | -10/Subcaves | Befriended Subdweller 2380 | -10/Subcaves | Befriended Subdweller 2427 | -10/Subcaves | A Subdweller sparked back to life 2427 | -10/Subcaves | A Subdweller sparked back to life 2427 | -10/Subcaves | A Subdweller sparked back to life 2430 | -10/Subcaves | Befriended Subdweller 2430 | -10/Subcaves | Befriended Subdweller 2655 | -10/Subcaves | Befriended Subdweller 2705 | -10/Subcaves | Befriended Subdweller 2918 | -10/Subcaves | Shifting Twisted Machinery released Mak. Flight Unit 2979 | -10/Subcaves | Scientist uncovered a shortcut to Scraptown 3017 | -10/Subcaves | Entered Scraptown 3017 | -7/Scraptown | Accompanied by 6 allies 3352 | -7/Scraptown | Heard Great Nut preacher, LISTEN AND RECITE! 3401 | -7/Scraptown | Visited UFD Registry 3401 | -7/Scraptown | Registered with UFD as "Biopod" 3443 | -7/Scraptown | Visited TADAMA 3558 | -7/Scraptown | Visited A0-MCA Data Center 3573 | -7/Scraptown | Given a B rating by A0-MCA 3590 | -7/Scraptown | Found A0-MCA's Component Scanner 3677 | -7/Scraptown | Visited Science Guys 4111 | -7/Scraptown | Visited Research Penetration Think Tank 4231 | -7/Scraptown | Met Optimus 4231 | -7/Scraptown | Accepted into 0bPrime 4397 | -7/Scraptown | Discovered new exit (range 3) 4457 | -7/Scraptown | Found Scrap Suit 4496 | -7/Scraptown | Civil war broke out across Scraptown 4500 | -7/Scraptown | Entered Factory 4500 | -5/Factory | Accompanied by 5 allies 4500 | -5/Factory | Evolved 10 slots: Power x1, Propulsion x4, Utility x5 4741 | -5/Factory | Lost 3 allies 4924 | -5/Factory | Identified Exp. Sensor Array 4996 | -5/Factory | Lost 7 parts (1p4n2w) 5084 | -5/Factory | Discovered new exit (range 15) 5091 | -5/Factory | Lost 3 parts (3u) 5141 | -5/Factory | Entered another Factory area 5141 | -4/Factory | Evolved 2 slots: Propulsion x1, Utility x1 5252 | -4/Factory | Discovered new exit (range 11) 5255 | -4/Factory | Entered Armory 5319 | -4/Armory | Build established: Sprinter 5402 | -4/Armory | Assisted by bots powering up and referring to "LRC-V3" 5402 | -4/Armory | Core integrity fell below 50% 5431 | -4/Armory | Lost 13 parts (1p8n3u1w) 5508 | -4/Armory | Lost 9 allies 5517 | -4/Armory | Found Fusion Bomb Launcher 5582 | -4/Armory | Spotted Armor Guard 5582 | -4/Armory | Spotted Armor Guard 5607 | -4/Armory | Spotted Armor Guard 5607 | -4/Armory | Spotted Armor Guard 5613 | -4/Armory | Core integrity fell below 20% 5622 | -4/Armory | Breached Obliterator storage 5640 | -4/Armory | Destroyed by Armor Guard with Advanced Plasma Rifle Last Messages --------------- 05614_ Field strength at 82. 05614_ Slug penetrates Reinforced Shell. 05615_ Field strength at 76. 05616_ Field strength at 70. 05617_ Field strength at 48. 05618_ System corrupted: Matter fused (-7). 05618_ Field strength at 35. 05618_ Penetrated by Slug. 05618_ Slug penetrates Wall. 05619_ Field strength at 14. 05620_ Stasis field depleted. 05620_ Melee Analysis Suite destroyed. 05620_ Slug penetrates Reinforced Shell. 05622_ ALERT: Weapon containment breached. Dispatching heavy reinforcements to area. 05622_ Triggered Alarm Trap. 05622_ An alarm sounds. 05622_ ALERT: Alarm triggered, dispatching investigation squad. 05627_ Derelict Superweapon? disabled. Map ----- +----------------------------------------------------+ | | | | | | | | | | | | | | | | | | | | | | | | | | | | | ?????????????????????????????????????????????????? | | ?????????????????????????????????????????????????? | | ?????????????????????????????????????????????????? | | ?????????????????????????????????????????????????? | | ?????????????????????????????????????????????????? | | ?????????????????#############???????????????????? | | ?????????????????#"""""""""""#?####??????????????? | | ?????????????????# "### #??????????????? | | ?????????????????# """ " " #??????????????? | | ?????????????????# "?" "&" Y w #??????????????? | | ?????????????????# """ """Y""###^ #??????????????? | | ???#########?????# @ ""#?# #??????????????? | | #??# ?????# """ """ ""#?# #??????????????? | | #??# ??? ## "?" "?" ""#?# #??????????????? | | #??# "??? ## """ """ ""#?# #??????????????? | | #??# ""? ## """#?# #??????????????? | | #??# """ ##############?# #??????????????? | | #??# """ #????????????### #??????????????? | | #??# """ #?????########"# #??????????????? | | #??# """ #?????# #??????????????? | | #??#""" """ #?????# #??????????????? | | #??#"Y #?????##^ "######??????????????? | | ####""" #??????# ##???????????????????? | | #T"# #??????#[[ T#???????????????????? | | # "######+#+############%*[ ##???????????????????? | | !% #????????????????????? | | "????????????????????? | | #????????????????????? | | #????????????????????? | | ############+######## #????????????????????? | | #?????#! [ #????# #????????????????????? | | #?????#!![ """ #????# #????????????????????? | | #?????#![ """ #????# #????????????????????? | | +#+##????# """ #????# #????????????????????? | | #????# #????# #????????????????????? | | " #????# """ #???? +????????????????????? | +----------------------------------------------------+ Best States ------------- Heat Dissipation 57 Energy Generation 26 Energy Capacity 480 Matter Stores 300 Matter Capacity 300 Sight Range 21 Robot Scan Range 20 Terrain Scan Density 10 Armor Coverage 225 Propulsion Shielding 33 Evasion (%) 65 Melee Accuracy 5 Recoil Reduction 6 Offensive Hacking 10 Item Schematics ----------------- None Robot Schematics ------------------ None Fabricated ------------ Nothing Repaired ---------- Nothing Alien Tech Used ----------------- None Achievements -------------- None Challenges ------------ None Game ------ Seed BiocellRegenerativeGuard Manual? 0 Play Time 00:54:48 Cumulative 85.3 hours Start 2025.08.01 @ 19:56:48 End 2025.08.02 @ 19:24:27 Sessions 2 Manual Loads 0 Difficulty Rogue Special Mode None Game No. 112 Rogue 112 Adventurer 0 Explorer 0 Win Type - Total 1 Types 1/0/0/0/0/0/0/0/0/0 Lore% 45 Gallery% 43 Achievement% 41 Wizard Run 0 Options --------- Layout 2 ASCII 0 Keyboard 1 Movement Numpad Keybinds 0 Fullscreen 1 Font 32/Tamsyn Map View 50x44 Zoom Use 0% Tactical HUD 1 Map Filters NONE Filters NONE Steam 1 RUN: 5f8d25c9-8021-4b3a-b47a-17a392968acb